bitfinex/quotes_BTCUSD_20241226
["timestamp","ask_amount","ask_price","bid_price","bid_amount"]
[1735221071556,0.00801718,95652.0,95641.0,0.03232382]
[1735221071710,0.00801718,95652.0,95642.0,0.03232382]
[1735221071912,0.00801718,95652.0,95643.0,0.03232382]
[1735221072074,0.00801718,95652.0,95644.0,0.03232382]
[1735221072269,0.00801718,95652.0,95642.0,0.003]
[1735221072270,0.15,95650.0,95642.0,0.003]
[1735221072477,0.15,95648.0,95643.0,0.001]
[1735221072678,0.209106,95645.0,95643.0,0.001]
[1735221072880,0.1120007,95644.0,95642.0,0.004]
[1735221073178,0.418222,95643.0,95626.0,0.209147]
[1735221073365,0.02097,95640.0,95628.0,0.03231109]
[1735221073560,0.02097,95640.0,95629.0,0.03231109]
[1735221073779,0.02097,95638.0,95630.0,0.03231109]
[1735221074031,0.02097,95638.0,95631.0,0.03231109]
[1735221074200,0.00801287,95637.0,95630.0,0.02102273]
[1735221074807,0.00801287,95637.0,95631.0,0.2414361]
[1735221075019,0.02097,95638.0,95632.0,0.0322991]
[1735221075215,0.02097,95638.0,95631.0,0.209137]
[1735221075455,0.02097,95638.0,95633.0,0.209132]
[1735221075784,0.14476833,95646.0,95633.0,0.418264]
[1735221075990,0.10398632,95645.0,95630.0,0.02902273]
[1735221076190,0.023,95644.0,95630.0,0.008]
[1735221076391,0.209127,95636.0,95607.0,0.30248038]
[1735221076633,0.209143,95628.0,95607.0,0.30248038]
[1735221076895,0.209143,95628.0,95612.0,0.209178]
[1735221077137,0.00857281,95628.0,95622.0,0.209155]
[1735221077394,0.209113,95642.0,95622.0,0.209155]
[1735221077889,0.209117,95640.0,95622.0,0.209155]
[1735221078059,0.209135,95632.0,95614.0,0.209174]
[1735221078268,0.1125398,95631.0,95612.0,0.0207629]
[1735221078852,0.209139,95630.0,95627.0,0.00415564]
[1735221079110,0.10398632,95630.0,95627.0,0.00015564]
[1735221079358,0.15,95639.0,95627.0,0.00015564]
[1735221079359,0.00856059,95629.0,95627.0,0.21029964]
[1735221079598,0.00856059,95629.0,95628.0,0.05334891]
[1735221079872,0.25398632,95641.0,95628.0,0.05334891]
[1735221080070,0.25398632,95641.0,95629.0,0.24145995]
[1735221080071,0.10398632,95641.0,95629.0,0.24145995]
[1735221080271,0.00855752,95640.0,95630.0,0.03231895]
[1735221080471,0.20911,95643.0,95631.0,0.03231895]
[1735221080771,0.20911,95643.0,95632.0,0.03232462]
[1735221080976,0.209115,95641.0,95628.0,0.002]
[1735221081189,0.00713126,95642.0,95628.0,0.002]
[1735221081391,0.209127,95636.0,95628.0,0.002]
[1735221081733,0.00714517,95635.0,95628.0,0.002]
[1735221081957,0.00714517,95635.0,95628.0,0.006]
[1735221082162,0.00714517,95635.0,95628.0,0.004]
[1735221082411,0.00714517,95635.0,95627.0,0.00015564]
[1735221082552,0.209117,95640.0,95628.0,0.001]
[1735221082750,0.209129,95635.0,95628.0,0.001]
[1735221082972,0.00662836,95634.0,95628.0,0.001]
[1735221083184,0.15,95631.0,95628.0,0.002]
[1735221083393,0.15,95629.0,95628.0,0.001]
[1735221083592,0.25398632,95629.0,95628.0,0.001]
[1735221083766,0.26061488,95629.0,95628.0,0.001]
[1735221083987,0.28158488,95629.0,95628.0,0.001]
[1735221085010,0.26061488,95629.0,95627.0,0.00015564]
[1735221085217,0.31312932,95628.0,95627.0,0.00015564]
[1735221085428,0.48409932,95628.0,95627.0,0.00015564]
[1735221085606,0.49072713,95628.0,95627.0,0.00015564]
[1735221086915,0.49072713,95628.0,95627.0,0.00115564]
[1735221087458,0.00662781,95628.0,95627.0,0.00115564]
[1735221087685,0.00662781,95628.0,95627.0,0.21047164]
[1735221087855,8.55e-05,95638.0,95627.0,0.06286702]
[1735221088057,8.55e-05,95638.0,95635.0,0.209128]
[1735221088297,8.55e-05,95638.0,95637.0,0.209124]
[1735221088495,8.55e-05,95638.0,95637.0,0.24156722]
[1735221089531,0.209073,95660.0,95648.0,0.209099]
[1735221089736,0.209073,95660.0,95649.0,0.03244322]
[1735221089970,0.15,95659.0,95650.0,0.03244322]
[1735221090191,0.15,95665.0,95651.0,0.03244322]
[1735221090367,0.15,95660.0,95652.0,0.03244322]
[1735221090559,0.15,95660.0,95653.0,0.03244322]
[1735221090782,0.00541547,95657.0,95654.0,0.03244322]
[1735221090958,0.00541547,95657.0,95655.0,0.03244322]
[1735221091141,0.00541547,95657.0,95656.0,0.03244322]
[1735221091867,0.15,95668.0,95656.0,0.03244322]
[1735221092067,0.15,95668.0,95650.0,0.41819]
[1735221092068,0.15,95668.0,95657.0,0.03244322]
[1735221093275,0.15,95668.0,95657.0,0.03444322]
[1735221094442,0.15,95668.0,95657.0,0.03944322]
[1735221094712,0.209066,95664.0,95657.0,0.03944322]
[1735221094884,0.15,95663.0,95657.0,0.03944322]
[1735221095097,0.00569186,95658.0,95657.0,0.03944322]
[1735221095295,8.55e-05,95658.0,95657.0,0.03944322]
[1735221095500,0.00569186,95658.0,95657.0,0.03944322]
[1735221095682,8.55e-05,95658.0,95657.0,0.03944322]
[1735221097005,0.20905,95671.0,95657.0,0.03944322]
[1735221097210,0.20920561,95671.0,95658.0,0.03244322]
[1735221097551,0.20920561,95671.0,95659.0,0.03244322]
[1735221097552,0.00560913,95670.0,95659.0,0.03244322]
[1735221097781,0.00560913,95670.0,95657.0,0.007]
[1735221097782,0.00560913,95670.0,95660.0,0.24151622]
[1735221097917,0.00560913,95670.0,95661.0,0.03244322]
[1735221098296,0.00560913,95670.0,95662.0,0.03244322]
[1735221098491,0.209054,95669.0,95663.0,0.03244322]
[1735221098723,0.209054,95669.0,95664.0,0.03244322]
[1735221098861,0.00560718,95668.0,95665.0,0.03244322]
[1735221099051,0.209058,95667.0,95666.0,0.03244322]
[1735221099483,0.4686515,95667.0,95666.0,0.03244322]
[1735221099681,0.1,95661.0,95644.0,0.09299217]
[1735221099839,0.1,95661.0,95645.0,0.0325451]
[1735221099840,0.209106,95646.0,95645.0,0.0325451]
[1735221100045,0.54429232,95646.0,95645.0,0.0325451]
[1735221100280,0.15,95645.0,95644.0,0.09299217]
[1735221100495,0.25398632,95645.0,95638.0,0.000171]
[1735221100696,0.359119,95639.0,95638.0,0.000171]
[1735221100894,0.46310532,95639.0,95638.0,0.03273487]
[1735221101100,0.46866922,95639.0,95638.0,0.000171]
[1735221101719,0.1555639,95639.0,95638.0,0.000171]
[1735221101915,0.1555639,95639.0,95638.0,0.03273249]
[1735221102423,0.1555639,95639.0,95638.0,0.000171]
[1735221102589,0.0055639,95639.0,95638.0,0.000171]
[1735221102772,0.15,95642.0,95638.0,0.000171]
[1735221102973,0.0055745,95639.0,95638.0,0.000171]
[1735221103243,0.00557601,95641.0,95638.0,0.03269507]
[1735221103487,0.00464541,95639.0,95638.0,0.000171]
[1735221103688,0.15,95642.0,95638.0,0.03270516]
[1735221103846,0.00464541,95639.0,95638.0,0.000171]
[1735221104050,0.15,95642.0,95638.0,0.03270774]
[1735221104252,0.00464541,95639.0,95638.0,0.000171]
[1735221104490,0.15,95642.0,95638.0,0.03270836]
[1735221104723,0.00464541,95639.0,95638.0,0.000171]
[1735221104928,0.20911,95643.0,95638.0,0.03270861]
[1735221105123,0.00464541,95639.0,95638.0,0.000171]
[1735221105317,0.209065,95664.0,95639.0,0.209119]
[1735221105524,0.0812,95673.0,95638.0,0.08274098]
[1735221105525,0.0812,95673.0,95654.0,0.209086]
[1735221105699,0.209035,95678.0,95656.0,0.209082]
[1735221105898,0.209024,95683.0,95657.0,0.03357193]
[1735221107083,0.15,95682.0,95657.0,0.03357193]
[1735221107293,0.15,95682.0,95671.0,0.209048]
[1735221107514,0.15015564,95682.0,95671.0,0.209048]
[1735221107790,0.00462187,95681.0,95671.0,0.209048]
[1735221109313,0.00462187,95681.0,95676.0,0.209037]
[1735221109758,0.00462187,95681.0,95671.0,0.210048]
[1735221109991,0.00015564,95682.0,95671.0,0.001]
[1735221110205,0.15,95680.0,95671.0,0.001]
[1735221110597,0.15,95680.0,95669.0,0.209053]
[1735221110777,0.00467955,95679.0,95669.0,0.209053]
[1735221110986,0.00467955,95679.0,95671.0,0.003]
[1735221111187,0.00467955,95679.0,95669.0,0.209053]
[1735221111396,0.00467955,95679.0,95671.0,0.001]
[1735221112011,0.00467955,95679.0,95675.0,0.02117191]
[1735221112247,0.209034,95678.0,95675.0,0.02117191]
[1735221112651,0.209038,95676.0,95675.0,0.02117191]
[1735221112859,0.00468031,95677.0,95675.0,0.02117191]
[1735221113035,0.23468982,95676.0,95675.0,0.02117191]
[1735221113263,0.00468182,95676.0,95671.0,0.002]
[1735221113445,0.209034,95678.0,95671.0,0.002]
[1735221113648,0.00467879,95675.0,95671.0,0.002]
[1735221113826,8.55e-05,95679.0,95671.0,0.001]
[1735221114034,0.00467106,95674.0,95668.0,0.209055]
[1735221114233,8.55e-05,95679.0,95668.0,0.22975121]
[1735221114437,8.55e-05,95679.0,95675.0,0.001]
[1735221114645,0.00467694,95678.0,95675.0,0.001]
[1735221114992,0.00467694,95678.0,95676.0,0.209038]
[1735221115336,8.55e-05,95679.0,95672.0,0.209047]
[1735221115739,8.55e-05,95679.0,95672.0,0.418094]
[1735221115944,8.55e-05,95679.0,95668.0,0.22975121]
[1735221115945,8.55e-05,95679.0,95677.0,0.209036]
[1735221116433,8.55e-05,95679.0,95677.0,0.289536]
[1735221116634,8.55e-05,95679.0,95678.0,0.05100271]
[1735221117041,8.55e-05,95679.0,95678.0,0.00104511]
[1735221117259,8.55e-05,95679.0,95678.0,0.10503143]
[1735221117800,0.00010265,95682.0,95681.0,0.1]
[1735221118002,0.00010265,95682.0,95681.0,0.10503114]
[1735221118350,0.00010265,95682.0,95681.0,0.20503114]
[1735221118684,0.00010265,95682.0,95681.0,0.25333114]
[1735221118934,0.00010265,95682.0,95681.0,0.25228632]
[1735221119144,0.00010265,95682.0,95681.0,0.25928632]
[1735221120435,0.00010265,95682.0,95681.0,0.16128632]
[1735221120610,0.00010265,95682.0,95681.0,0.16233115]
[1735221120816,0.00010265,95682.0,95681.0,0.17133115]
[1735221121026,0.00010265,95682.0,95681.0,0.18033115]
[1735221121247,0.00010265,95682.0,95681.0,0.17133115]
[1735221121422,0.00010265,95682.0,95681.0,0.17028632]
[1735221121634,0.00010265,95682.0,95681.0,0.13003125]
[1735221121868,0.00010265,95682.0,95681.0,0.11203125]
[1735221122054,0.00010265,95682.0,95681.0,0.11403125]
[1735221122504,0.00010265,95682.0,95681.0,0.11203125]
[1735221122923,0.00010265,95682.0,95681.0,0.007]
[1735221123256,0.00493045,95682.0,95681.0,0.007]
[1735221123483,0.00010265,95682.0,95681.0,0.007]
[1735221123697,0.00492077,95682.0,95681.0,0.009]
[1735221123896,0.00010265,95682.0,95669.0,0.209052]
[1735221124104,0.00493026,95682.0,95670.0,0.0209052]
[1735221124452,0.00493026,95682.0,95681.0,0.009]
[1735221124814,0.00493026,95682.0,95674.0,0.209042]
[1735221125018,0.00493026,95682.0,95681.0,0.003]
[1735221125215,0.00018805,95682.0,95674.0,0.209042]
[1735221125448,0.00501339,95682.0,95679.0,0.20903]
[1735221125603,0.00018805,95682.0,95679.0,0.20903]
[1735221126049,0.00018805,95682.0,95670.0,0.003]
[1735221126249,0.00018805,95682.0,95671.0,0.209049]
[1735221126473,0.0048261,95681.0,95671.0,0.209049]
[1735221126689,0.2138541,95681.0,95670.0,0.003]
[1735221126892,0.2138541,95681.0,95674.0,0.001]
[1735221127091,0.0048261,95681.0,95674.0,0.001]
[1735221127344,0.0048261,95681.0,95674.0,0.004]
[1735221127557,0.209041,95675.0,95661.0,0.209071]
[1735221127728,0.209034,95678.0,95661.0,0.209071]
[1735221127929,0.00481131,95674.0,95670.0,0.002]
[1735221128107,0.209029,95681.0,95670.0,0.005]
[1735221128308,0.209029,95681.0,95670.0,0.003]
[1735221128509,0.209032,95679.0,95670.0,0.003]
[1735221128709,0.00481282,95680.0,95671.0,0.230254]
[1735221128980,0.00018805,95682.0,95666.0,0.20906]
[1735221128981,0.00480828,95679.0,95666.0,0.20906]
[1735221129177,0.20921505,95682.0,95666.0,0.20906]
[1735221129450,0.0047986,95681.0,95666.0,0.20906]
[1735221129977,0.0047986,95681.0,95670.0,0.209049]
[1735221130515,0.0047986,95681.0,95679.0,0.209032]
[1735221130713,0.0047986,95681.0,95680.0,0.00104511]
[1735221130918,0.00018805,95682.0,95681.0,0.209027]
[1735221131215,0.00018805,95682.0,95681.0,0.31301332]
[1735221132026,0.00018805,95682.0,95681.0,0.50111332]
[1735221132252,0.00018805,95682.0,95681.0,0.75111332]
[1735221133029,0.00018805,95682.0,95681.0,0.84410549]
[1735221133223,0.0002,95729.0,95681.0,0.84410549]
[1735221133224,8.55e-05,95724.0,95686.0,0.1]
[1735221133489,8.55e-05,95724.0,95686.0,1.04543114]
[1735221133637,8.55e-05,95724.0,95686.0,1.04438632]
[1735221134043,8.55e-05,95724.0,95711.0,0.208962]
[1735221134251,0.00060441,95724.0,95711.0,0.208962]
[1735221134458,0.0049362,95723.0,95716.0,0.20895]
[1735221134862,0.00060441,95724.0,95716.0,0.20895]
[1735221135514,0.0049173,95723.0,95716.0,0.20895]
[1735221135712,0.0049173,95723.0,95717.0,0.020895]
[1735221135866,0.00060441,95724.0,95718.0,0.208947]
[1735221136083,0.00060441,95724.0,95720.0,0.20894]
[1735221136478,0.001,95723.0,95709.0,0.208966]
[1735221136696,0.001,95723.0,95700.0,0.0801]
[1735221136941,0.001,95723.0,95711.0,0.20896]
[1735221137294,0.00060441,95724.0,95711.0,0.20896]
[1735221137499,0.00060441,95724.0,95720.0,0.003]
[1735221137673,0.00494781,95723.0,95720.0,0.003]
[1735221137839,0.00494781,95723.0,95711.0,0.20896]
[1735221138038,0.00494781,95723.0,95711.0,0.20996]
[1735221138234,0.00060441,95724.0,95711.0,0.420922]
[1735221138654,0.00536714,95723.0,95711.0,0.420922]
[1735221139147,0.00060441,95724.0,95717.0,0.208949]
[1735221139384,0.00060441,95724.0,95723.0,0.208936]
[1735221141127,0.00060441,95724.0,95723.0,0.217936]
[1735221141336,0.00060441,95724.0,95723.0,0.208936]
[1735221141511,0.00060441,95724.0,95723.0,0.003]
[1735221142617,0.00060441,95724.0,95723.0,0.006]
[1735221142824,0.00060441,95724.0,95717.0,0.208948]
[1735221143029,0.00060441,95724.0,95723.0,0.005]
[1735221143345,0.00060441,95724.0,95723.0,0.014]
[1735221143346,0.10459073,95724.0,95723.0,0.014]
[1735221143566,0.10459073,95724.0,95707.0,0.208971]
[1735221143703,0.11008767,95724.0,95723.0,0.002]
[1735221143905,0.11008767,95724.0,95723.0,0.005]
[1735221144119,0.11008767,95724.0,95723.0,0.003]
[1735221144315,0.00610135,95724.0,95723.0,0.009]
[1735221145127,0.00060441,95724.0,95723.0,0.009]
[1735221145734,0.00060441,95724.0,95723.0,0.014]
[1735221146026,0.00060441,95724.0,95723.0,0.005]
[1735221146237,0.00060441,95724.0,95723.0,0.007]
[1735221146590,0.00655466,95724.0,95723.0,0.007]
[1735221146800,0.00060441,95724.0,95723.0,0.016]
[1735221146971,0.00060441,95724.0,95723.0,0.005]
[1735221147171,0.00060441,95724.0,95717.0,0.208947]
[1735221147382,0.00060441,95724.0,95723.0,0.003]
[1735221147579,0.00060441,95724.0,95723.0,0.001]
[1735221148009,0.00060441,95724.0,95723.0,0.01]
[1735221148818,0.00060441,95724.0,95723.0,0.009]
[1735221149104,0.00060441,95724.0,95723.0,0.014]
[1735221149326,0.00060441,95724.0,95723.0,0.0481885]
[1735221149452,0.00060441,95724.0,95723.0,0.005]
[1735221149662,0.00060441,95724.0,95723.0,0.002]
[1735221150036,0.00060441,95724.0,95723.0,0.007]
[1735221150242,0.00060441,95724.0,95723.0,0.016]
[1735221150479,0.00060441,95724.0,95723.0,0.011]
[1735221150667,0.00060441,95724.0,95723.0,0.005]
[1735221150897,0.00060441,95724.0,95723.0,0.014]
[1735221151938,0.00060441,95724.0,95723.0,0.009]
[1735221152067,0.00657196,95724.0,95723.0,0.009]
[1735221152276,0.00060441,95724.0,95723.0,0.005]
[1735221152477,0.00657196,95724.0,95723.0,0.014]
[1735221152672,0.00060441,95724.0,95723.0,0.009]
[1735221152899,0.00657196,95724.0,95723.0,0.009]
[1735221153147,0.00060441,95724.0,95723.0,0.012]
[1735221153318,0.00657196,95724.0,95723.0,0.012]
[1735221153549,0.00060441,95724.0,95723.0,0.012]
[1735221153740,0.00657196,95724.0,95723.0,0.012]
[1735221153951,0.00060441,95724.0,95723.0,0.012]
[1735221154160,0.00657196,95724.0,95723.0,0.012]
[1735221154300,0.00060441,95724.0,95723.0,0.012]
[1735221154506,0.00657196,95724.0,95723.0,0.012]
[1735221154704,0.00060441,95724.0,95723.0,0.012]
[1735221154953,0.00657196,95724.0,95723.0,0.012]
[1735221155163,0.10459073,95724.0,95723.0,0.012]
[1735221155480,0.11055677,95724.0,95723.0,0.001]
[1735221155687,0.11055677,95724.0,95723.0,0.004]
[1735221155882,0.11055677,95724.0,95708.0,0.208967]
[1735221156157,0.24090468,95723.0,95708.0,0.208967]
[1735221156335,0.208936,95723.0,95708.0,0.208967]
[1735221156531,0.00597436,95722.0,95708.0,0.208967]
[1735221156948,0.00597436,95722.0,95708.0,0.209967]
[1735221157655,0.00597436,95722.0,95712.0,0.208958]
[1735221158958,0.00597436,95722.0,95718.0,0.208946]
[1735221159405,0.00060441,95724.0,95723.0,0.208936]
[1735221161327,0.00060441,95724.0,95718.0,0.208946]
[1735221161622,0.00060441,95724.0,95723.0,0.002]
[1735221161829,0.00060441,95724.0,95723.0,0.003]
[1735221162166,0.00060441,95724.0,95723.0,0.005]
[1735221162366,0.00060441,95724.0,95723.0,0.004]
[1735221164340,0.00060441,95724.0,95723.0,0.005]
[1735221165218,0.03326816,95724.0,95723.0,0.005]
[1735221165444,0.03962267,95724.0,95723.0,0.005]
[1735221165823,0.03326816,95724.0,95723.0,0.005]
[1735221166243,0.03328428,95724.0,95723.0,0.005]
[1735221166402,0.00060441,95724.0,95723.0,0.005]
[1735221169061,0.03329458,95724.0,95723.0,0.005]
[1735221169890,0.00060441,95724.0,95723.0,0.005]
[1735221170241,0.03329544,95724.0,95723.0,0.005]
[1735221170440,0.00060441,95724.0,95723.0,0.2353306]
[1735221171284,0.00060441,95724.0,95723.0,0.2343306]
[1735221171452,0.00060441,95724.0,95723.0,0.2323306]
[1735221171876,0.00060441,95724.0,95723.0,0.2413306]
[1735221172218,0.00060441,95724.0,95723.0,0.2393306]
[1735221172428,0.00060441,95724.0,95723.0,0.2533306]
[1735221172637,0.00060441,95724.0,95723.0,0.2353306]
[1735221172940,0.00060441,95724.0,95723.0,0.2443306]
[1735221173342,0.00060441,95724.0,95723.0,0.222936]
[1735221173771,0.00060441,95724.0,95723.0,0.217936]
[1735221174118,0.00060441,95724.0,95723.0,0.222936]
[1735221174321,0.00060441,95724.0,95723.0,0.23501892]
[1735221174501,0.00060441,95724.0,95723.0,0.03508292]
[1735221174938,0.00060441,95724.0,95723.0,0.02608292]
[1735221175156,0.00060441,95724.0,95723.0,0.03008292]
[1735221175355,0.00060441,95724.0,95723.0,0.014]
[1735221175753,0.00692906,95724.0,95723.0,0.023]
[1735221176038,0.00060441,95724.0,95723.0,0.009]
[1735221176215,0.03327379,95724.0,95723.0,0.009]
[1735221176540,0.03960524,95724.0,95723.0,0.009]
[1735221176886,0.00693586,95724.0,95723.0,0.009]
[1735221177315,0.00693586,95724.0,95723.0,0.017]
[1735221177738,0.00060441,95724.0,95718.0,0.208947]
[1735221177937,0.00060441,95724.0,95723.0,0.003]
[1735221178262,0.00060441,95724.0,95723.0,0.004]
[1735221178480,0.00060441,95724.0,95723.0,0.0242947]
[1735221178706,0.00060441,95724.0,95723.0,0.003]
[1735221179167,0.00060441,95724.0,95722.0,0.07774458]
[1735221179794,0.00060441,95724.0,95723.0,0.208936]
[1735221180593,0.00060441,95724.0,95723.0,0.211936]
[1735221181160,0.00060441,95724.0,95723.0,0.215936]
[1735221181565,0.00060441,95724.0,95723.0,0.218936]
[1735221186969,0.00060441,95724.0,95723.0,0.211936]
[1735221187378,0.00060441,95724.0,95723.0,0.215936]
[1735221187532,0.00060441,95724.0,95723.0,0.208936]
[1735221187942,0.00060441,95724.0,95723.0,0.215936]
[1735221188343,0.00060441,95724.0,95723.0,0.218936]
[1735221188547,0.00060441,95724.0,95723.0,0.211936]
[1735221188753,0.00060441,95724.0,95723.0,0.208936]
[1735221188964,0.00060441,95724.0,95723.0,0.33030526]
[1735221189159,0.00060441,95724.0,95723.0,0.33430526]
[1735221189357,0.00060441,95724.0,95723.0,0.43829158]
[1735221189561,0.00060441,95724.0,95723.0,0.51389158]
[1735221190040,0.00060441,95724.0,95723.0,0.76389158]
[1735221190498,0.00060441,95724.0,95723.0,1.23663249]
[1735221190721,0.00060441,95724.0,95723.0,1.24063249]
[1735221191337,0.00060441,95724.0,95723.0,1.24563249]
[1735221191516,0.00060441,95724.0,95723.0,1.25163249]
[1735221191740,0.00060441,95724.0,95723.0,1.10271484]
[1735221191901,0.00060441,95724.0,95723.0,1.11171484]
[1735221192098,0.0002,95729.0,95728.0,0.308925]
[1735221192299,0.00035551,95729.0,95728.0,0.42574087]
[1735221193019,0.00035551,95729.0,95728.0,0.32574087]
[1735221193190,0.00035551,95729.0,95728.0,0.42574087]
[1735221194057,0.00035551,95729.0,95728.0,0.85616413]
[1735221194684,0.00035551,95729.0,95728.0,0.86316413]
[1735221194886,0.00035551,95729.0,95728.0,1.01316413]
[1735221195039,0.00035551,95729.0,95728.0,1.20024139]
[1735221195676,0.00044111,95729.0,95728.0,1.20024139]
[1735221196479,0.00044111,95729.0,95728.0,1.19324139]
[1735221196674,0.00044111,95729.0,95728.0,1.18424139]
[1735221196883,0.00044111,95729.0,95728.0,1.20024139]
[1735221197194,0.00044111,95729.0,95728.0,1.02352356]
[1735221197397,0.00044111,95729.0,95728.0,1.01652356]
[1735221197899,0.00044111,95729.0,95728.0,1.14752356]
[1735221198072,1.1e-07,95729.0,95728.0,1.70949849]
[1735221199216,1.1e-07,95729.0,95728.0,1.988475]
[1735221199621,8.55e-05,95754.0,95752.0,0.1]
[1735221199844,8.55e-05,95754.0,95753.0,0.60607706]
[1735221199963,8.55e-05,95754.0,95753.0,0.60503302]
[1735221200645,5e-07,95754.0,95753.0,0.87803302]
[1735221200993,5e-07,95754.0,95753.0,0.88703302]
[1735221201217,5e-07,95754.0,95753.0,1.42783302]
[1735221201392,5e-07,95754.0,95753.0,1.77365628]
[1735221201589,0.01026695,95764.0,95763.0,0.2]
[1735221201797,0.01042241,95764.0,95763.0,0.55140843]
[1735221202145,0.01042241,95764.0,95763.0,0.57440843]
[1735221202788,0.01042241,95764.0,95763.0,0.66763166]
[1735221203314,0.01042241,95764.0,95763.0,0.71753166]
[1735221203730,0.0467,95803.0,95798.0,0.208771]
[1735221203950,0.04685546,95803.0,95799.0,0.0208771]
[1735221204156,0.00652846,95802.0,95799.0,0.0208771]
[1735221204897,0.00652846,95802.0,95798.0,0.001]
[1735221205659,0.00652846,95802.0,95793.0,0.208781]
[1735221206066,0.04685546,95803.0,95793.0,0.208781]
[1735221206293,0.00015546,95803.0,95795.0,0.208779]
[1735221206520,0.00653374,95802.0,95778.0,0.0802]
[1735221206688,0.00015546,95803.0,95800.0,0.208767]
[1735221207652,0.00015546,95803.0,95802.0,0.208763]
[1735221208133,0.00015546,95803.0,95800.0,0.209767]
[1735221208834,8.55e-05,95802.0,95800.0,0.209767]
[1735221209256,8.55e-05,95802.0,95800.0,0.001]
[1735221209923,8.55e-05,95802.0,95796.0,0.208774]
[1735221210668,8.55e-05,95802.0,95791.0,0.22977678]
[1735221210669,8.55e-05,95802.0,95791.0,0.02098978]
[1735221210891,8.55e-05,95802.0,95800.0,0.001]
[1735221211073,8.55e-05,95802.0,95791.0,0.02098978]
[1735221211376,0.00664377,95801.0,95796.0,0.001]
[1735221212097,0.43765432,95800.0,95796.0,0.001]
[1735221212499,0.15,95799.0,95796.0,0.001]
[1735221212626,0.15663221,95799.0,95796.0,0.001]
[1735221213012,0.31275832,95798.0,95796.0,0.001]
[1735221213213,0.08483071,95797.0,95772.0,0.208828]
[1735221213464,0.08483071,95797.0,95762.0,0.1]
[1735221213465,0.208789,95791.0,95775.0,0.20882]
[1735221213869,0.10398632,95796.0,95762.0,0.1]
[1735221214100,0.00660807,95790.0,95780.0,0.208811]
[1735221214265,0.208779,95795.0,95780.0,0.208811]
[1735221214465,0.208779,95795.0,95778.0,0.208815]
[1735221214466,0.00661638,95789.0,95778.0,0.208815]
[1735221214668,0.0782,95797.0,95779.0,0.00104403]
[1735221215017,0.00661562,95788.0,95784.0,0.208802]
[1735221215215,0.0782,95797.0,95784.0,0.208802]
[1735221215564,0.00661939,95796.0,95784.0,0.208802]
[1735221215775,0.208779,95795.0,95784.0,0.208802]
[1735221215991,0.208779,95795.0,95780.0,0.208811]
[1735221216194,0.00661716,95794.0,95780.0,0.208811]
[1735221218278,0.02097,95793.0,95780.0,0.208811]
[1735221218662,0.208779,95795.0,95780.0,0.208811]
[1735221218663,0.02097,95791.0,95780.0,0.208811]
[1735221219073,0.02097,95789.0,95780.0,0.208811]
[1735221219278,0.02097,95789.0,95771.0,0.23023204]
[1735221219279,0.02097,95789.0,95784.0,0.417604]
[1735221219953,0.02097,95789.0,95784.0,0.208801]
[1735221220374,0.02097,95788.0,95784.0,0.2505621]
[1735221220726,0.02097,95788.0,95784.0,0.2515621]
[1735221221131,0.02097,95788.0,95784.0,0.209801]
[1735221221432,0.02097,95796.0,95788.0,0.208792]
[1735221221839,0.02097,95794.0,95784.0,0.208801]
[1735221222244,0.02097,95792.0,95789.0,0.20879]
[1735221222590,8.55e-05,95799.0,95798.0,0.208772]
[1735221222977,8.55e-05,95799.0,95795.0,0.208777]
[1735221226636,8.55e-05,95799.0,95798.0,0.02093031]
[1735221227754,8.55e-05,95799.0,95798.0,0.02193031]
[1735221228402,8.55e-05,95799.0,95798.0,0.00294031]
[1735221229713,8.55e-05,95799.0,95798.0,0.001]
[1735221229907,8.55e-05,95799.0,95798.0,0.003]
[1735221230110,8.55e-05,95799.0,95798.0,0.002]
[1735221230319,8.55e-05,95799.0,95798.0,0.0449555]
[1735221230636,8.55e-05,95799.0,95798.0,0.0469555]
[1735221230857,8.55e-05,95799.0,95798.0,0.005]
[1735221231257,8.55e-05,95799.0,95798.0,0.001]
[1735221232530,8.55e-05,95799.0,95798.0,0.208772]
[1735221239171,8.55e-05,95799.0,95797.0,0.02092404]
[1735221239606,8.55e-05,95799.0,95797.0,0.22969804]
[1735221239959,8.55e-05,95799.0,95797.0,0.208774]
[1735221241079,8.55e-05,95799.0,95792.0,0.208785]
[1735221241292,8.55e-05,95799.0,95797.0,0.001]
[1735221241500,8.55e-05,95799.0,95798.0,0.00104374]
[1735221244058,8.55e-05,95799.0,95797.0,0.285973]
[1735221244059,8.55e-05,95799.0,95797.0,0.208773]
[1735221244644,8.55e-05,95799.0,95798.0,0.00104374]
[1735221246641,8.55e-05,95799.0,95798.0,0.10503006]
[1735221247285,8.55e-05,95799.0,95798.0,0.16978068]
[1735221247509,8.55e-05,95799.0,95798.0,0.29848055]
[1735221247874,8.55e-05,95799.0,95798.0,0.29743694]
[1735221248904,8.55e-05,95799.0,95798.0,0.39743694]
[1735221249649,8.55e-05,95799.0,95798.0,0.33268632]
[1735221249855,8.55e-05,95799.0,95798.0,0.23468632]
[1735221250029,8.55e-05,95799.0,95798.0,0.71967572]
[1735221250437,8.55e-05,95799.0,95798.0,0.71767572]
[1735221250649,8.55e-05,95799.0,95798.0,0.73167572]
[1735221251284,8.55e-05,95799.0,95798.0,0.83167572]
[1735221251479,8.55e-05,95799.0,95798.0,0.44090832]
[1735221252089,8.55e-05,95799.0,95798.0,0.43590832]
[1735221252242,8.55e-05,95799.0,95798.0,0.44668632]
[1735221252446,8.55e-05,95799.0,95798.0,0.43668632]
[1735221252654,8.55e-05,95799.0,95798.0,1.12748632]
[1735221253047,8.55e-05,95799.0,95798.0,1.27632117]
[1735221253248,8.55e-05,95799.0,95798.0,1.27232117]
[1735221253758,8.55e-05,95799.0,95798.0,1.26532117]
[1735221254155,8.55e-05,95799.0,95798.0,1.27132117]
[1735221254384,8.55e-05,95799.0,95798.0,1.26532117]
[1735221254612,8.55e-05,95799.0,95798.0,1.4693026]
[1735221255054,0.0002,95809.0,95808.0,0.20875]
[1735221255258,0.0002,95809.0,95808.0,0.31273632]
[1735221255708,0.0002,95809.0,95808.0,0.20875]
[1735221256287,0.0002,95809.0,95808.0,0.005]
[1735221256651,0.0002,95809.0,95808.0,0.009]
[1735221257060,0.0002,95809.0,95808.0,0.004]
[1735221257694,0.0002,95809.0,95807.0,0.208752]
[1735221257898,0.0002,95809.0,95808.0,0.007]